lending/lending_fUSD_20260124
["ID","MTS","AMOUNT","RATE_DAILY","PERIOD"]
[403159136,1769217033070,-2192.03,0.0001558,2]
[403159137,1769217033079,-166.01,0.00015584,2]
[403159138,1769217033089,-1224.88,0.00015633,2]
[403159139,1769217033098,-500.0,0.00015634,2]
[403159140,1769217033107,-4353.5391356,0.00015712,2]
[403159141,1769217033116,-165.56132903,0.00015842,2]
[403159142,1769217033125,-1224.88,0.00015907,2]
[403159143,1769217033135,-500.0,0.00015908,2]
[403159144,1769217033144,-325.9,0.00015939,2]
[403159145,1769217033154,-3569.51,0.00015939,2]
[403159146,1769217033163,-300.0,0.00015956,2]
[403159147,1769217033172,-250.0,0.00015956,2]
[403159148,1769217033181,-166.63,0.00015985,2]
[403159149,1769217033190,-151.3772066,0.00016,2]
[403159150,1769217033200,-165.56132903,0.00016002,2]
[403159151,1769217033210,-166.93282129,0.00016025,2]
[403159152,1769217033221,-4353.5391356,0.00016025,2]
[403159153,1769217033230,-3594.18,0.00016065,2]
[403159154,1769217033239,-228.31,0.00016131,2]
[403159155,1769217033249,-1224.88,0.00016181,2]
[403159156,1769217033258,-500.0,0.00016182,2]
[403159157,1769217033268,-150.0,0.00016182,2]
[403159158,1769217033278,-151.07703537,0.00016182,2]
[403159159,1769217033287,-500.0,0.00016182,2]
[403159160,1769217033297,-150.0,0.00016182,2]
[403159161,1769217033306,-500.0,0.00016182,2]
[403159162,1769217033316,-150.0,0.00016182,2]
[403159163,1769217033325,-150.0,0.00016182,2]
[403159164,1769217033334,-633.0,0.00016182,2]
[403159165,1769217033344,-150.0,0.00016182,2]
[403159166,1769217033354,-500.0,0.00016182,2]
[403159167,1769217033363,-500.0,0.00016182,2]
[403159168,1769217033372,-150.0,0.00016182,2]
[403159169,1769217033381,-500.0,0.00016182,2]
[403159170,1769217033391,-510.0,0.00016213,2]
[403159171,1769217033400,-500.0,0.00016237,2]
[403159172,1769217033409,-150.0,0.00016237,2]
[403159173,1769217033418,-500.0,0.00016237,2]
[403159174,1769217033427,-150.0,0.00016237,2]
[403159175,1769217033436,-500.0,0.00016237,2]
[403159176,1769217033445,-150.0,0.00016237,2]
[403159177,1769217033454,-633.0,0.00016237,2]
[403159178,1769217033464,-500.0,0.00016237,2]
[403159179,1769217033473,-500.0,0.00016237,2]
[403159180,1769217033482,-500.0,0.00016237,2]
[403159181,1769217033492,-325.52481693,0.00016245,2]
[403159182,1769217033501,-319.25319672,0.00016245,2]
[403159183,1769217033510,-394.97432523,0.00016245,2]
[403159184,1769217033520,-500.0,0.00016292,2]
[403159185,1769217033529,-500.0,0.00016292,2]
[403159186,1769217033538,-255.80435828,0.00016292,2]
[403159187,1769217033548,-150.0,0.00016292,2]
[403159188,1769217033556,-191.66284577,0.00016292,2]
[403159189,1769217033565,-500.0,0.00016292,2]
[403159190,1769217033575,-633.0,0.00016292,2]
[403159191,1769217033583,-500.0,0.00016292,2]
[403159192,1769217033592,-500.0,0.00016292,2]
[403159193,1769217033602,-4353.5391356,0.00016337,2]
[403159194,1769217033611,-500.0,0.00016346,2]
[403159195,1769217033620,-500.0,0.00016346,2]
[403159196,1769217033629,-633.0,0.00016346,2]
[403159197,1769217033639,-500.0,0.00016346,2]
[403159198,1769217033652,-500.0,0.00016346,2]
[403159199,1769217033662,-281.84582328,0.00016401,2]
[403159200,1769217033671,-500.0,0.00016401,2]
[403159201,1769217033680,-633.0,0.00016401,2]
[403159202,1769217033690,-500.0,0.00016401,2]
[403159203,1769217033699,-420.0,0.00016416,2]
[403159204,1769217033708,-229.2422167,0.00016438,2]
[403159205,1769217033718,-500.0,0.00016438,2]
[403159206,1769217033727,-500.0,0.00016438,2]
[403159207,1769217033736,-500.0,0.00016438,2]
[403159208,1769217033745,-500.0,0.00016438,2]
[403159209,1769217033754,-500.0,0.00016438,2]
[403159210,1769217033762,-500.0,0.00016438,2]
[403159211,1769217033772,-500.0,0.00016438,2]
[403159212,1769217033780,-500.0,0.00016438,2]
[403159213,1769217033791,-553.32552816,0.00016438,2]
[403159214,1769217033800,-500.0,0.00016438,2]
[403159215,1769217033809,-500.0,0.00016438,2]
[403159216,1769217033818,-500.0,0.00016438,2]
[403159217,1769217033827,-500.0,0.00016438,2]
[403159218,1769217033836,-500.0,0.00016438,2]
[403159219,1769217033845,-500.0,0.00016438,2]
[403159220,1769217033854,-500.0,0.00016438,2]
[403159221,1769217033864,-500.0,0.00016438,2]
[403159222,1769217033873,-500.0,0.00016438,2]
[403159223,1769217033882,-151.0,0.00016438,2]
[403159224,1769217033891,-150.0,0.00016447,2]
[403159225,1769217033900,-1224.88,0.00016455,2]
[403159226,1769217033910,-500.0,0.00016456,2]
[403159227,1769217033919,-633.0,0.00016456,2]
[403159228,1769217033928,-500.0,0.00016456,2]
[403159229,1769217033938,-165.56132903,0.00016482,2]
[403159230,1769217033948,-500.0,0.00016493,2]
[403159231,1769217033957,-1680.0,0.00016499,2]
[403159232,1769217033966,-500.0,0.00016511,2]
[403159233,1769217033975,-633.0,0.00016511,2]
[403159234,1769217033984,-500.0,0.00016511,2]
[403159235,1769217033993,-500.0,0.00016548,2]
[403159236,1769217034002,-500.0,0.00016566,2]
[403159237,1769217034011,-633.0,0.00016566,2]
[403159238,1769217034020,-500.0,0.00016566,2]
[403159239,1769217034029,-2369.68,0.00016592,2]
[403159240,1769217034038,-500.0,0.00016602,2]
[403159241,1769217034047,-500.0,0.0001662,2]
[403159242,1769217034057,-633.0,0.0001662,2]
[403159243,1769217034065,-500.0,0.0001662,2]
[403159244,1769217034075,-166.63,0.00016645,2]
[403159245,1769217034083,-4353.5391356,0.0001665,2]
[403159246,1769217034092,-500.0,0.00016657,2]
[403159247,1769217034101,-500.0,0.00016675,2]
[403159248,1769217034110,-633.0,0.00016675,2]
[403159249,1769217034119,-478.01957725,0.00016712,2]
[403159250,1769217034128,-166.41,0.00016712,2]
[403159251,1769217034138,-1000.0,0.00016713,2]
[403159252,1769217034147,-1224.88,0.00016729,2]
[403159253,1769217034156,-500.0,0.0001673,2]
[403159254,1769217034165,-633.0,0.0001673,2]
[403159255,1769217034174,-500.0,0.00016738,6]
[403159256,1769217034183,-500.0,0.00016785,2]
[403159257,1769217034193,-633.0,0.00016785,2]
[403159258,1769217034202,-325.9,0.00016824,2]
[403159259,1769217034211,-633.0,0.0001684,2]
[403159260,1769217034220,-500.0,0.0001684,2]
[403159261,1769217034229,-500.0,0.00016894,2]
[403159262,1769217034238,-633.0,0.00016894,2]
[403159263,1769217034247,-2098.0,0.000169,2]
[403159264,1769217034257,-500.0,0.00016949,2]
[403159265,1769217034266,-633.0,0.00016949,2]
[403159266,1769217034275,-166.93282129,0.00016962,2]
[403159267,1769217034285,-4353.5391356,0.00016962,2]
[403159268,1769217034294,-224.27869353,0.00016994,2]
[403159269,1769217034303,-500.0,0.00017,7]
[403159270,1769217034312,-500.0,0.00017,7]
[403159271,1769217034321,-500.0,0.00017,7]
[403159272,1769217034331,-544.89,0.00017,7]
[403159273,1769217034340,-250.0,0.00017,2]
[403159274,1769217034349,-1224.92218997,0.00017003,2]
[403159275,1769217034359,-633.0,0.00017004,2]
[403159276,1769217034368,-500.0,0.00017004,2]
[403159277,1769217034377,-633.0,0.00017059,2]
[403159278,1769217034386,-268.95505966,0.00017059,2]
[403159279,1769217034394,-578.20924308,0.00017099,2]
[403159280,1769217034404,-359.76179104,0.00017099,2]
[403159281,1769217034413,-250.0,0.00017099,2]
[403159282,1769217034422,-209.40437684,0.00017099,2]
[403159283,1769217034431,-250.0,0.00017099,2]
[403159284,1769217034440,-500.0,0.00017099,2]
[403159285,1769217034449,-250.0,0.00017099,2]
[403159286,1769217034458,-500.0,0.00017099,2]
[403159287,1769217034467,-250.0,0.00017099,2]
[403159288,1769217034477,-500.0,0.00017099,2]
[403159289,1769217034486,-250.0,0.00017099,2]
[403159290,1769217034495,-500.0,0.00017099,2]
[403159291,1769217034503,-250.0,0.00017099,2]
[403159292,1769217034512,-500.0,0.00017099,2]
[403159293,1769217034521,-500.0,0.00017099,2]
[403159294,1769217034530,-250.0,0.00017099,2]
[403159295,1769217034538,-500.0,0.00017099,2]
[403159296,1769217034548,-500.0,0.00017099,2]
[403159297,1769217034557,-250.0,0.00017099,2]
[403159298,1769217034566,-500.0,0.00017099,2]
[403159299,1769217034574,-500.0,0.00017099,2]
[403159300,1769217034584,-500.0,0.00017099,2]
[403159301,1769217034592,-250.0,0.00017099,2]
[403159302,1769217034601,-500.0,0.00017099,2]
[403159303,1769217034610,-237.56738324,0.00017099,2]
[403159304,1769217034737,-262.43261676,0.00017099,2]
[403159305,1769217034746,-250.0,0.00017099,2]
[403159306,1769217034755,-457.18720018,0.00017099,2]
[403159307,1769217034766,-42.81279982,0.00017099,2]
[403159308,1769217034775,-411.88431154,0.00017099,2]
[403159309,1769217034785,-88.11568846,0.00017099,2]
[403159310,1769217034795,-250.0,0.00017099,2]
[403159311,1769217034804,-500.0,0.00017099,2]
[403159312,1769217034813,-854.2589148,0.00017099,2]
[403159313,1769217034822,-500.0,0.00017099,2]
[403159314,1769217034830,-258.56910504,0.00017099,2]
[403159315,1769217034841,-241.43089496,0.00017099,2]
[403159316,1769217034850,-500.0,0.00017099,2]
[403159317,1769217034859,-500.0,0.00017099,2]
[403159318,1769217034868,-2468.0,0.00017099,2]
[403159319,1769217034877,-322.6107,0.00017099,2]
[403159320,1769217034886,-500.0,0.00017099,2]
[403159321,1769217034895,-250.0,0.00017099,2]
[403159322,1769217034904,-500.0,0.00017099,2]
[403159323,1769217034913,-140.68346119,0.00017099,2]
[403159324,1769217034925,-10.31653881,0.00017099,2]
[403159325,1769217034934,-250.0,0.00017099,2]
[403159326,1769217034943,-250.0,0.00017099,2]
[403159327,1769217034952,-500.0,0.00017099,2]
[403159328,1769217034961,-250.0,0.00017099,2]
[403159329,1769217034970,-500.0,0.00017099,2]
[403159330,1769217034979,-250.0,0.00017099,2]
[403159331,1769217034988,-500.0,0.00017099,2]
[403159332,1769217034998,-250.0,0.00017099,2]
[403159333,1769217035007,-500.0,0.00017099,2]
[403159334,1769217035016,-250.0,0.00017099,2]
[403159335,1769217035024,-500.0,0.00017099,2]
[403159336,1769217035033,-250.0,0.00017099,2]
[403159337,1769217035042,-500.0,0.00017099,2]
[403159338,1769217035052,-250.0,0.00017099,2]
[403159339,1769217035061,-500.0,0.00017099,2]
[403159340,1769217035070,-250.0,0.00017099,2]
[403159341,1769217035079,-500.0,0.00017099,2]
[403159342,1769217035089,-250.0,0.00017099,2]
[403159343,1769217035097,-500.0,0.00017099,2]
[403159344,1769217035106,-500.0,0.00017099,2]
[403159345,1769217035115,-500.0,0.00017099,2]
[403159346,1769217035125,-174.61919141,0.00017099,2]
[403159347,1769217035133,-151.0,0.00017099,2]
[403159348,1769217035143,-151.0,0.00017099,2]
[403159349,1769217035152,-151.0,0.00017099,2]
[403159350,1769217035161,-151.0,0.00017099,2]
[403159351,1769217035171,-250.0,0.00017099,2]
[403159352,1769217035180,-151.0,0.00017099,2]
[403159353,1769217035190,-250.0,0.00017099,2]
[403159354,1769217035199,-151.0,0.00017099,2]
[403159355,1769217035209,-250.0,0.00017099,2]
[403159356,1769217035218,-151.0,0.00017099,2]
[403159357,1769217035227,-250.0,0.00017099,2]
[403159358,1769217035237,-151.0,0.00017099,2]
[403159359,1769217035246,-250.0,0.00017099,2]
[403159360,1769217035256,-151.0,0.00017099,2]
[403159361,1769217035265,-250.0,0.00017099,2]
[403159362,1769217035274,-151.0,0.00017099,2]
[403159363,1769217035283,-250.0,0.00017099,2]
[403159364,1769217035292,-151.0,0.00017099,2]
[403159365,1769217035301,-250.0,0.00017099,2]
[403159366,1769217035310,-250.0,0.00017099,2]
[403159367,1769217035320,-250.0,0.00017099,2]
[403159368,1769217035329,-250.0,0.00017099,2]
[403159369,1769217035339,-250.0,0.00017099,2]
[403159370,1769217035348,-250.0,0.00017099,2]
[403159371,1769217035357,-250.0,0.00017099,2]
[403159372,1769217035366,-250.0,0.00017099,2]
[403159373,1769217035376,-250.0,0.00017099,2]
[403159374,1769217035385,-250.0,0.00017099,2]
[403159375,1769217035394,-250.0,0.00017099,2]
[403159376,1769217035403,-250.0,0.00017099,2]
[403159377,1769217035412,-250.0,0.00017099,2]
[403159378,1769217035422,-391.18071828,0.00017099,2]
[403159379,1769217035430,-500.0,0.00017099,2]
[403159380,1769217035440,-633.0,0.00017114,2]
[403159381,1769217035449,-172.08,0.00017178,2]
[403159382,1769217035458,-179.83,0.00017178,2]
[403159383,1769217035467,-558.47,0.00017178,2]
[403159384,1769217035475,-172.08,0.00017178,2]
[403159385,1769217035484,-558.47,0.00017178,2]
[403159386,1769217035493,-172.08,0.00017178,2]
[403159387,1769217035502,-179.83,0.00017178,2]
[403159388,1769217035510,-179.83,0.00017178,2]
[403159389,1769217035519,-558.47,0.00017178,2]
[403159390,1769217035528,-172.08,0.00017178,2]
[403159391,1769217035537,-179.83,0.00017178,2]
[403159392,1769217035546,-172.08,0.00017178,2]
[403159393,1769217035556,-272.36,0.00017178,2]
[403159394,1769217035565,-170.82,0.00017178,2]
[403159395,1769217035575,-179.83,0.00017178,2]
[403159396,1769217035584,-179.83,0.00017178,2]
[403159397,1769217035593,-1000.0,0.00017207,2]
[403159398,1769217035602,-225.0,0.00017273,2]
[403159399,1769217035611,-744.31814642,0.00017275,2]
[403159400,1769217035624,-3609.22098918,0.00017275,2]
[403159401,1769217035633,-58.89037107,0.00017281,2]
[403159402,1769217035646,-106.83651929,0.00017281,2]
[403159403,1769217035655,-166.63,0.00017304,2]
[403159404,1769217035664,-291.77128623,0.00017339,2]
[403159405,1769217035695,-289.80061886,0.00017339,2]
[403159406,1769217035730,-418.42809491,0.00017339,2]
[403159407,1769217035739,-225.0,0.00017372,2]
[403159408,1769217035748,-2369.68,0.00017422,2]
[403159409,1769217035757,-225.0,0.00017441,2]
[403159410,1769217035766,-5233.0,0.0001745,2]
[403159411,1769217035775,-176.1,0.00017471,2]
[403159412,1769217035784,-1000.0,0.00017481,2]
[403159413,1769217035793,-916.0,0.000175,2]
[403159414,1769217035801,-1203.0,0.000175,2]
[403159415,1769217035810,-1063.49,0.00017504,2]
[403159416,1769217035819,-225.0,0.00017532,2]
[403159417,1769217035828,-3112.81450126,0.0001757,2]
[403159418,1769217035839,-2120.18549874,0.0001757,2]
[403159419,1769217035848,-4353.5391356,0.00017587,2]
[403159420,1769217035857,-1000.0,0.000176,2]
[403159421,1769217035866,-200.0,0.00017607,2]
[403159422,1769217035875,-384.94,0.0001761,2]
[403159423,1769217035884,-250.0,0.00017641,2]
[403159424,1769217035894,-373.07297731,0.00017647,2]
[403159425,1769217035903,-217.15233878,0.00017647,2]
[403159426,1769217035912,-885.86649465,0.00017647,2]
[403159427,1769217035921,-229.35831624,0.00017647,2]
[403159428,1769217035930,-181.08010149,0.00017647,2]
[403159429,1769217035939,-158.36147008,0.0001767,2]
[403159430,1769217035948,-200.0,0.00017672,2]
[403159431,1769217035958,-845.0,0.0001768,2]
[403159432,1769217035967,-1085.679,0.00017692,2]
[403159433,1769217035976,-178.66,0.00017692,2]
[403159434,1769217035985,-264.96816924,0.00017694,2]
[403159435,1769217035994,-358.5087,0.00017694,2]
[403159436,1769217036004,-183.30477869,0.000177,2]
[403159437,1769217036015,-2257.69522131,0.000177,2]
[403159438,1769217036024,-4574.40558115,0.000177,2]
[403159439,1769217036034,-254.59441885,0.000177,2]
[403159440,1769217036043,-265.9040476,0.00017709,2]
[403159441,1769217036054,-59.9959524,0.00017709,2]
[403159442,1769217036063,-1751.30830591,0.0001773,2]
[403159443,1769217036072,-1000.0,0.00017755,2]
[403159444,1769217036081,-482.00435773,0.000178,2]
[403159447,1769217038691,-354.0347142,0.00017168,2]
[403159448,1769217038732,-278.9652858,0.00017168,2]
[403159449,1769217038742,-633.0,0.00017223,2]
[403159450,1769217038751,-88.0347142,0.00017278,2]
[403159452,1769217039622,-544.9652858,0.00017278,2]
[403159453,1769217039631,-633.0,0.00017333,2]
[403159454,1769217039640,-633.0,0.00017387,2]
[403159455,1769217039652,-567.0,0.000177,2]
[403159456,1769217039663,-517.99564227,0.000178,2]
[403159457,1769217039671,-150.0,0.00017808,2]
[403159458,1769217039680,-150.0,0.00017808,2]
[403159459,1769217039689,-1969.0,0.00017808,2]
[403159460,1769217039698,-123.58259173,0.00017814,2]
[403159461,1769217040052,-101.41740827,0.00017814,2]
[403159462,1769217040062,-200.0,0.0001782,2]
[403159463,1769217040071,-106.96593877,0.0001782,2]
[403159464,1769217040086,-128.42428123,0.0001782,2]
[403159465,1769217040095,-235.39023,0.0001782,2]
[403159466,1769217040104,-152.37337985,0.0001782,2]
[403159467,1769217040113,-6645.66140582,0.0001783,2]
[403159468,1769217040123,-200.0,0.00017856,2]
[403159469,1769217040131,-150.0,0.00017863,2]
[403159470,1769217040140,-166.93282129,0.000179,2]
[403159471,1769217040150,-1000.0,0.000179,2]
[403159473,1769217040160,-4353.5391356,0.000179,2]
[403159475,1769217040169,-150.0,0.00017918,2]
[403159476,1769217040178,-228.31,0.00017938,2]
[403159477,1769217040187,-226.0,0.00017955,2]
[403159478,1769217040196,-166.63,0.00017964,2]
[403159479,1769217040205,-486.0,0.00017966,2]
[403159480,1769217040215,-1000.0,0.00017966,2]
[403159481,1769217040224,-400.0,0.0001797,2]
[403159482,1769217040233,-500.0,0.0001797,2]
[403159483,1769217040243,-400.0,0.0001797,2]
[403159484,1769217040252,-700.0,0.0001797,2]
[403159485,1769217040271,-400.0,0.0001797,2]
[403159486,1769217040282,-150.0,0.00017972,2]
[403159489,1769217040291,-5233.0,0.00017979,2]
[403159491,1769217040301,-224.27869353,0.0001799,2]
[403159493,1769217040310,-224.27869353,0.0001799,2]
[403159494,1769217040320,-225.0,0.0001799,2]
[403159495,1769217040329,-500.0,0.00017998,7]
[403159496,1769217040338,-248.78771965,0.00017999,2]
[403159497,1769217040347,-1118.7427984,0.00017999,2]
[403159498,1769217040356,-20654.9438857,0.00017999,2]
[403159499,1769217040366,-300.0,0.00017999,2]
[403159500,1769217040376,-500.0,0.00017999,8]
[403159501,1769217040386,-500.0,0.00017999,9]
[403159502,1769217040396,-500.0,0.00017999,10]
[403159503,1769217040405,-500.0,0.00017999,11]
[403159504,1769217040415,-500.0,0.00017999,12]
[403159505,1769217040424,-500.0,0.00017999,13]
[403159506,1769217040433,-500.0,0.00017999,14]
[403159507,1769217040442,-568.30517394,0.00017999,15]
[403159508,1769217040452,-300.0,0.00017999,2]
[403159509,1769217040461,-212.2707723,0.00017999,2]
[403159510,1769217040470,-5479505.88131887,0.00018,2]
[403159511,1769217040480,-150.0,0.00018,2]
[403159512,1769217040489,-2536.75174456,0.00018,2]
[403159513,1769217040498,-150.0,0.00018,2]
[403159514,1769217040507,-4384.97455068,0.00018,2]
[403159515,1769217040516,-500.0,0.00018,2]
[403159516,1769217040525,-500.0,0.00018,2]
[403159517,1769217040535,-500.0,0.00018,2]
[403159518,1769217040544,-500.0,0.00018,2]
[403159519,1769217040553,-500.0,0.00018,2]
[403159520,1769217040562,-500.0,0.00018,2]
[403159521,1769217040571,-500.0,0.00018,2]
[403159522,1769217040579,-294.74644974,0.00018,2]
[403159523,1769217040589,-723681.95024719,0.00018,2]
[403159524,1769217040607,-306.19545673,0.00018,2]
[403159525,1769217040818,-1.7e-07,0.00018,2]
[403159526,1769217040829,-896.3678061,0.00018,2]
[403159527,1769217040862,-3210.48685374,0.00018,2]
[403159534,1769217043453,-31.13134433,0.00016198,2]
[403159535,1769217043565,-119.86865567,0.00016198,2]
[403159536,1769217043574,-643.97767045,0.00017442,2]
[403159537,1769217043583,-569.46398767,0.00018,2]
[403159538,1769217043597,-551.16170028,0.00018,2]
[403159545,1769217045570,-1000.0,0.00014988,2]
[403159546,1769217045579,-151.0,0.00016197,2]
[403159547,1769217045589,-179.83,0.00017178,2]
[403159548,1769217045599,-1149.09067609,0.00018,2]
[403159549,1769217045889,-2685.27,0.00018,2]
[403159559,1769217249153,337.14578244,0.00018,30]
[403159565,1769217817230,500.0,0.00014,3]
[403159569,1769217985683,-500.0,0.00015087,2]
[403159570,1769217985705,-500.0,0.00015087,3]
[403159571,1769217985727,-500.0,0.00015087,4]
[403159572,1769217985748,-500.0,0.00015087,5]
[403159573,1769217985770,-166.66,0.00015454,2]
[403159574,1769217985792,-70.5528,0.00015779,2]
[403159576,1769218078238,7813.82,0.00013404,2]
[403159577,1769218078260,3261.53,0.00013404,2]
[403159579,1769218206896,183.45406062,0.000226,120]
[403159590,1769218231817,-653.90007245,0.00014999,2]
[403159591,1769218231960,-546.09992755,0.00014999,2]
[403159592,1769218231969,-3511.58007246,0.00015,2]
[403159593,1769218231980,-1451.76899235,0.00015,2]
[403159596,1769218232047,-3087.74837764,0.00015,2]
[403159597,1769218232055,-300.0,0.00015067,2]
[403159598,1769218232064,-300.0,0.00015067,2]
[403159599,1769218232076,-3553.0,0.00015068,2]
[403159600,1769218232085,-202.39830242,0.00015432,2]
[403159601,1769218232093,-200.0,0.00015633,2]
[403159602,1769218232102,-96.1072,0.00015779,2]
[403159603,1769218232113,-166.29296141,0.00015915,2]
[403159604,1769218232121,-4168.97475262,0.0001599,2]
[403159735,1769218237888,-8209.90465304,0.0001599,2]
[403159736,1769218237898,-300.0,0.00015999,2]
[403159737,1769218237908,-22118.96047911,0.00016,4]
[403159738,1769218237919,-45646.68635824,0.00016,4]
[403159739,1769218237929,-161.0,0.000161,2]
[403159740,1769218237938,-161.0,0.000161,2]
[403159741,1769218237947,-161.0,0.000161,2]
[403159742,1769218237957,-161.0,0.000161,2]
[403159743,1769218237967,-3479.71047475,0.00016103,2]
[403159744,1769218237978,-288.08952525,0.00016103,2]
[403159745,1769218237988,-166.66,0.00016105,2]
[403159746,1769218237997,-3767.8,0.00016137,2]
[403159747,1769218238006,-3664.56651827,0.00016171,2]
[403159748,1769218238017,-103.23348173,0.00016171,2]
[403159749,1769218238026,-983.04947536,0.000162,5]
[403159750,1769218238038,-3036.01599866,0.000162,5]
[403159751,1769218238049,-980.94016078,0.000162,5]
[403159752,1769218238058,-150.0,0.000162,2]
[403159753,1769218238068,-3010.83613122,0.00016205,2]
[403159754,1769218238082,-756.96386878,0.00016205,2]
[403159755,1769218238091,-3767.8,0.00016239,2]
[403159756,1769218238100,-285.71,0.0001624,2]
[403159757,1769218238109,-4.79713122,0.00016244,2]
[403159758,1769218238122,-205.64260982,0.00016244,2]
[403159760,1769218238132,-242.57921245,0.00016244,2]
[403159762,1769218238142,-282.29757085,0.00016251,2]
[403159764,1769218238151,-500.0,0.00016251,2]
[403159766,1769218238160,-322.57896916,0.00016251,2]
[403159767,1769218238169,-321.93791661,0.00016251,2]
[403159769,1769218238178,-381.07394788,0.00016251,2]
[403159771,1769218238187,-500.0,0.00016251,2]
[403159772,1769218238196,-4538.65974323,0.00016252,2]
[403159773,1769218238207,-702.99048605,0.00016252,2]
[403159774,1769218238219,-2588.07328926,0.00016252,2]
[403159775,1769218238229,-911.92671074,0.00016252,2]
[403159842,1769218239850,-991258.34977072,0.00016252,2]
[403159843,1769218239860,-3767.8,0.00016273,2]
[403159844,1769218239869,-150.0,0.000163,2]
[403159845,1769218239878,-3767.8,0.00016307,2]
[403159846,1769218239887,-3767.8,0.0001634,2]
[403159847,1769218239896,-150.0,0.00016352,2]
[403159848,1769218239905,-1199.8,0.00016352,2]
[403159849,1769218239914,-3641.87,0.00016352,2]
[403159850,1769218239924,-3767.8,0.00016374,2]
[403159851,1769218239933,-150.0,0.000164,2]
[403159852,1769218239942,-3767.8,0.00016408,2]
[403159853,1769218239951,-166.66,0.0001643,2]
[403159854,1769218239960,-500.0,0.00016436,2]
[403159855,1769218239969,-500.0,0.00016436,2]
[403159856,1769218239978,-500.0,0.00016436,2]
[403159857,1769218239987,-500.0,0.00016436,2]
[403159858,1769218239997,-500.0,0.00016436,2]
[403159859,1769218240006,-500.0,0.00016436,2]
[403159860,1769218240015,-500.0,0.00016436,2]
[403159861,1769218240024,-500.0,0.00016436,2]
[403159862,1769218240033,-458.35337875,0.00016436,2]
[403159863,1769218240042,-500.0,0.00016436,2]
[403159864,1769218240051,-500.0,0.00016438,2]
[403159865,1769218240061,-500.0,0.00016438,2]
[403159866,1769218240072,-500.0,0.00016438,2]
[403159867,1769218240081,-274.31048327,0.00016438,2]
[403159868,1769218240091,-161.04240695,0.00016438,2]
[403159869,1769218240099,-1500.0,0.00016438,2]
[403159870,1769218240109,-9999.99,0.00016438,2]
[403159871,1769218240118,-3767.8,0.00016442,2]
[403159872,1769218240127,-200.0,0.0001646,2]
[403159873,1769218240136,-9999.99,0.0001646,2]
[403159874,1769218240145,-3767.8,0.00016476,2]
[403159875,1769218240155,-150.99,0.00016483,2]
[403159876,1769218240164,-999.99,0.00016483,2]
[403159877,1769218240173,-420.0,0.00016489,2]
[403159878,1769218240182,-420.0,0.00016489,2]
[403159879,1769218240191,-2637.68,0.00016494,2]
[403159880,1769218240201,-1680.0,0.00016499,2]
[403159881,1769218240210,-161.0,0.000165,2]
[403159882,1769218240219,-161.0,0.000165,2]
[403159883,1769218240228,-150.0,0.000165,2]
[403159884,1769218240237,-3767.8,0.0001651,2]
[403159885,1769218240247,-178.6816772,0.00016515,2]
[403159886,1769218240256,-292.84990389,0.00016533,2]
[403159887,1769218240265,-438.08594202,0.00016533,2]
[403159888,1769218240274,-592.7427,0.00016533,2]
[403159889,1769218240283,-3767.8,0.00016544,2]